bitfinex-derivatives/quotes_ETHF0:USTF0_20260312
["timestamp","ask_amount","ask_price","bid_price","bid_amount"]
[1773293598071,0.81289885,2023.3,2022.7,0.8167299]
[1773293598875,0.81289885,2023.3,2022.2,0.8167299]
[1773293598876,0.81289885,2023.1,2022.2,0.8167299]
[1773293599177,0.81289885,2023.1,2022.2,0.82214511]
[1773293601278,0.81289885,2023.1,2022.3,0.85208736]
[1773293605682,0.86675113,2022.9,2022.3,0.85208736]
[1773293613181,0.86675113,2022.7,2022.2,1.10765062]
[1773293613685,0.86675113,2022.5,2022.2,1.10765062]
[1773293613881,0.86675113,2022.5,2022.1,0.85208736]
[1773293614887,0.86675113,2022.5,2022.1,0.85783362]
[1773293615584,0.86675113,2022.5,2022.2,0.85208736]
[1773293615783,0.86675113,2022.5,2022.1,0.24975001]
[1773293616384,0.86675113,2022.5,2022.1,0.00574626]
[1773293616583,0.86675113,2022.5,2021.7,9.14100763]
[1773293617181,0.86675113,2022.5,2021.9,1.3579447]
[1773293617587,0.86675113,2022.5,2021.9,1.36178445]
[1773293619189,0.88146603,2022.7,2021.9,1.36178445]
[1773293619391,0.88146603,2022.8,2022.3,1.3579447]
[1773293620599,0.88146603,2022.8,2022.4,0.00486717]
[1773293621489,0.87624929,2022.7,2022.1,0.00486476]
[1773293623090,0.87624929,2022.7,2021.9,9.14484738]
[1773293623290,0.87624929,2022.7,2021.9,1.36178445]
[1773293624390,0.87919351,2022.5,2021.9,0.00383975]
[1773293625897,0.87919351,2022.5,2021.9,1.36178445]
[1773293627197,0.87919351,2022.5,2021.9,9.14484738]
[1773293627893,0.87919351,2022.5,2022.1,1.3579447]
[1773293631599,0.87908575,2022.8,2022.1,1.3579447]
[1773293633395,5.03603188,2023.2,2021.9,8.03417268]
[1773293633596,0.90904338,2023.0,2022.4,7.78306293]
[1773293633893,0.9090421,2022.8,2022.2,7.78306293]
[1773293638001,0.9090421,2022.8,2022.3,1.3579447]
[1773293638696,0.9090421,2022.8,2022.3,9.14100763]
[1773293639096,0.93768196,2023.0,2022.5,1.3579447]
[1773293640192,6.478,2023.2,2022.8,0.57816812]
[1773293640399,0.822577,2023.2,2022.8,0.57816812]
[1773293640702,0.822577,2023.3,2022.8,0.57816812]
[1773293643599,0.822577,2023.3,2022.6,0.58190069]
[1773293645303,0.822577,2023.3,2022.7,0.58349886]
[1773293645698,0.822577,2023.1,2022.6,0.83179673]
[1773293645901,0.822577,2023.1,2022.6,0.83231509]
[1773293646095,0.822577,2023.2,2022.9,0.58404555]
[1773293646300,0.822577,2023.5,2023.1,0.58404555]
[1773293646499,0.822577,2023.5,2023.2,1.3579447]
[1773293646700,0.822577,2023.7,2023.2,2.20120648]
[1773293646897,0.822577,2023.7,2023.4,1.3579447]
[1773293647099,7.546627,2023.8,2023.5,0.84326178]
[1773293647300,7.546627,2023.8,2023.4,0.84791846]
[1773293647301,0.822577,2023.7,2023.4,0.84791846]
[1773293647702,7.546627,2023.8,2023.5,0.84326178]
[1773293648704,7.299577,2023.8,2023.5,0.84326178]
[1773293649501,6.477,2023.8,2023.5,0.84326178]
[1773293650298,0.82720853,2023.9,2023.5,0.84326178]
[1773293652012,0.82720853,2023.9,2023.4,0.84791846]
[1773293653010,0.82720853,2023.9,2023.5,0.84326178]
[1773293654512,0.82720853,2023.9,2023.4,0.84791846]
[1773293659811,0.00463153,2023.9,2023.6,0.84326178]
[1773293660011,0.00463153,2023.9,2023.4,0.00465668]
[1773293660012,0.82716627,2024.3,2023.8,0.80197513]
[1773293660212,0.82716627,2024.3,2023.6,0.80197513]
[1773293660903,0.83100349,2024.3,2023.6,0.80197513]
[1773293663415,7.30600349,2024.3,2023.6,0.80197513]
[1773293663713,0.82716627,2024.2,2023.8,0.80197513]
[1773293664503,0.00383722,2024.3,2023.8,0.80197513]
[1773293664709,0.82716627,2024.2,2023.8,0.80197513]
[1773293664907,0.82716627,2024.2,2023.6,0.80197513]
[1773293665112,0.82716627,2023.9,2023.4,0.80663181]
[1773293665608,0.24703,2023.9,2023.4,0.80663181]
[1773293665810,6.47783722,2024.3,2023.6,0.80197513]
[1773293666112,7.30500349,2024.3,2023.6,0.80197513]
[1773293666514,0.82716627,2024.6,2024.0,0.80197513]
[1773293667510,0.83121974,2024.6,2024.0,0.80197513]
[1773293668910,0.82716627,2024.4,2024.0,0.80197513]
[1773293669415,1.07412627,2024.5,2024.0,0.80197513]
[1773293670717,0.24696,2024.5,2024.0,0.80197513]
[1773293670912,0.82716627,2024.9,2024.3,0.80197513]
[1773293671414,7.30116627,2025.0,2024.3,0.80197513]
[1773293671610,0.82716627,2025.0,2024.3,0.80197513]
[1773293671812,1.07405627,2025.1,2024.3,0.80197513]
[1773293672113,0.82716627,2025.0,2024.3,0.80197513]
[1773293672315,0.82716627,2024.8,2024.3,0.80197513]
[1773293673015,1.07407627,2024.9,2024.3,0.80197513]
[1773293674418,0.24691,2024.9,2024.3,0.80197513]
[1773293674623,0.82716627,2024.8,2024.3,0.80197513]
[1773293675221,0.24691,2024.9,2024.3,0.80197513]
[1773293675421,0.82716627,2024.8,2024.3,0.80197513]
[1773293676226,0.24691,2024.9,2024.3,0.80197513]
[1773293678120,0.82716627,2025.3,2024.4,0.80197513]
[1773293678824,0.82716627,2025.3,2024.5,0.80197513]
[1773293679018,0.82716627,2025.1,2024.3,0.80197513]
[1773293679323,0.82716627,2024.9,2024.3,0.80197513]
[1773293679914,0.83175489,2025.3,2024.5,0.80197513]
[1773293682325,0.83175489,2025.3,2024.5,0.80197513]
[1773293687531,0.88252497,2025.3,2024.5,0.80197513]
[1773293690537,0.82054485,2025.1,2024.5,0.80197513]
[1773293692238,0.82054485,2024.9,2024.5,0.80197513]
[1773293692438,0.82054485,2024.9,2024.2,1.06637983]
[1773293692734,0.82054485,2024.8,2024.2,1.06637983]
[1773293694039,0.82054485,2024.8,2024.2,0.82502523]
[1773293694437,0.82054485,2024.6,2024.0,0.82502523]
[1773293694836,0.82054485,2024.6,2023.8,0.82502523]
[1773293695141,0.82054485,2024.6,2024.0,0.82502523]
[1773293697837,0.82054485,2024.6,2023.9,0.82502523]
[1773293698337,1.60326363,2024.7,2023.9,0.82502523]
[1773293698338,0.82054485,2024.4,2023.9,0.82502523]
[1773293702948,0.82054485,2024.8,2023.9,0.82502523]
[1773293705952,0.82054485,2024.7,2023.9,0.82502523]
[1773293706248,0.82054485,2024.7,2024.0,0.82502523]
[1773293706549,6.471,2024.8,2024.0,0.82502523]
[1773293707449,0.82054485,2024.9,2024.0,0.82502523]
[1773293707850,0.82054485,2025.0,2024.0,0.82502523]
[1773293708846,0.24689,2025.1,2024.2,0.82502523]
[1773293709047,1.06743485,2025.1,2024.2,0.82502523]
[1773293709247,0.82054485,2025.0,2024.2,0.82502523]
[1773293713550,0.82054485,2024.8,2024.2,0.82502523]
[1773293713746,0.82054485,2024.7,2024.1,0.25009848]
[1773293713955,0.82054485,2024.7,2024.0,0.82502523]
[1773293714755,0.82054485,2024.6,2024.0,0.82502523]
[1773293716352,0.82054485,2024.6,2023.6,19.65848957]
[1773293716353,0.82054485,2024.3,2023.6,0.82502523]
[1773293717160,0.82054485,2024.3,2023.4,0.82968191]
[1773293723769,0.95053816,2024.2,2023.4,0.82968191]
[1773293723961,0.95053816,2024.0,2023.4,0.82968191]
[1773293724261,0.95053816,2024.0,2023.4,0.00465668]
[1773293725560,0.95053816,2024.0,2023.4,0.9583069]
[1773293725962,0.95053816,2024.0,2023.4,0.00465668]
[1773293727656,0.95053816,2023.7,2023.4,0.00465668]
[1773293727862,0.95585664,2023.7,2023.3,1.20129038]
[1773293728365,0.95585664,2023.7,2023.3,0.95365022]
[1773293728565,0.95585664,2023.7,2023.1,0.54735202]
[1773293728767,0.95585664,2023.7,2023.1,0.55150493]
[1773293732166,0.95053816,2023.5,2023.1,0.00415291]
[1773293732366,0.95053816,2023.5,2022.7,1.3566854]
[1773293732568,0.00531848,2023.7,2022.7,1.3566854]
[1773293732569,1.04075452,2023.3,2022.7,1.3566854]
[1773293732964,1.04075452,2023.3,2022.5,1.3566854]
[1773293733164,1.04060915,2023.1,2022.5,1.3566854]
[1773293733470,1.04060915,2023.1,2022.5,1.36256204]
[1773293733769,1.04060915,2023.1,2022.5,1.6051331]
[1773293734069,1.04060915,2023.1,2022.6,0.05360531]
[1773293744873,1.04060915,2023.1,2022.5,1.6051331]
[1773293746073,1.04060915,2023.1,2022.5,9.32410509]
[1773293746471,1.04060915,2023.1,2022.5,9.34524118]
[1773293746673,1.04060915,2023.1,2022.6,0.02113609]
[1773293749079,1.04060915,2023.1,2022.5,9.32410509]
[1773293755083,1.04060915,2023.1,2022.6,7.71897199]
[1773293761185,1.04060915,2023.1,2022.7,7.71897199]
[1773293763187,1.04449693,2023.5,2022.9,1.3566854]
[1773293763386,1.04449693,2023.5,2022.9,9.07565739]
[1773293768693,1.04449693,2023.5,2023.1,1.3566854]
[1773293780496,1.04449693,2023.5,2023.0,7.71897199]
[1773293780802,1.04449693,2023.5,2022.9,7.97108457]
[1773293783400,1.07388161,2023.7,2023.1,1.3566854]
[1773293789607,1.07388161,2023.7,2023.0,7.71897199]
[1773293803214,0.24707,2023.6,2023.0,7.71897199]
[1773293803404,1.06491212,2023.5,2022.9,0.25211258]
[1773293803608,1.06491212,2023.4,2022.8,7.71897199]
[1773293803909,1.06498884,2023.2,2022.7,7.71897199]
[1773293804109,1.06498884,2023.2,2022.6,7.71897199]
[1773293804907,1.06498884,2023.2,2022.6,7.97117212]
[1773293805112,1.06498884,2023.2,2022.6,0.25220013]
[1773293805310,1.06498884,2023.2,2022.5,7.72484863]
[1773293809313,1.06498884,2023.2,2022.5,7.97631957]
[1773293810813,1.06498884,2023.2,2022.5,0.25734758]
[1773293812414,1.05851789,2023.0,2022.5,0.25734758]
[1773293827036,1.06022289,2022.8,2022.3,7.71897199]
[1773293827336,1.06022289,2022.8,2022.3,0.24919645]
[1773293827531,1.06022289,2022.8,2022.1,7.71897199]
[1773293828031,1.06022289,2022.8,2022.1,7.7232939]
[1773293831140,1.06022289,2022.8,2022.2,7.71897199]
[1773293831342,16.69667713,2023.5,2022.2,7.71897199]
[1773293831343,1.04714726,2023.0,2022.3,1.35670695]
[1773293832141,1.04714726,2023.0,2022.3,9.07567894]
[1773293832331,1.04714726,2023.0,2022.3,1.35670695]
[1773293833249,1.04665122,2023.3,2022.3,9.07567894]
[1773293834250,7.52364634,2023.5,2022.7,1.35670695]
[1773293834446,1.04664634,2023.5,2022.9,9.07567894]
[1773293835145,1.04664634,2023.5,2022.9,7.71897199]
[1773293835349,1.04664634,2023.5,2022.8,7.71897199]
[1773293838552,1.05125374,2023.6,2022.8,7.71897199]
[1773293839052,1.05125374,2023.6,2022.8,7.96051891]
[1773293839252,1.05125374,2023.6,2022.8,0.24154692]
[1773293839450,1.05125374,2023.6,2022.7,18.69367894]
[1773293840649,1.05125374,2023.6,2022.9,1.35670695]
[1773293842556,1.07123043,2023.7,2023.1,1.35670695]
[1773293843154,0.00531848,2023.7,2023.1,1.35670695]
[1773293843556,1.07321036,2023.7,2023.1,1.35670695]
[1773293844655,0.8787361,2023.9,2023.4,0.81967552]
[1773293845657,0.88287322,2023.9,2023.4,0.81967552]
[1773293847551,0.88287322,2023.9,2023.2,0.81737882]
[1773293847757,0.88287322,2023.9,2023.0,0.81740735]
[1773293847957,0.88287322,2023.9,2023.1,0.81822222]
[1773293850063,0.8787361,2023.7,2023.1,0.81822222]
[1773293854366,0.8787361,2023.5,2023.0,1.06982324]
[1773293857268,0.8787361,2023.5,2022.8,2.18843671]
[1773293857470,0.8787361,2023.5,2022.9,0.83168595]
[1773293860974,0.8787361,2023.5,2022.8,2.44165457]
[1773293861173,0.8787361,2023.5,2022.8,10.16062656]
[1773293861367,0.8787361,2023.5,2022.8,2.44165457]
[1773293861574,0.8787361,2023.5,2022.8,1.08490381]
[1773293862272,0.8787361,2023.5,2022.9,0.83486844]
[1773293864272,0.8787361,2023.5,2022.9,8.55384043]
[1773293867978,0.8787361,2023.5,2022.9,0.83486844]
[1773293868181,0.92199876,2023.3,2022.8,0.25184141]
[1773293868479,0.92199876,2023.3,2022.8,0.8368356]
[1773293870177,0.24709,2023.4,2022.9,0.90292449]
[1773293870575,0.24709,2023.4,2023.1,0.90292449]
[1773293871481,1.19019395,2023.4,2023.1,0.90292449]
[1773293872882,0.24709,2023.4,2023.1,0.90292449]
[1773293873383,1.19019395,2023.4,2023.1,0.90292449]
[1773293874386,0.24709,2023.4,2023.1,0.90292449]
[1773293875388,0.94310395,2023.5,2023.1,0.90292449]
[1773293875588,0.94310395,2023.8,2023.1,0.90292449]
[1773293875785,0.94310395,2023.8,2023.3,0.90292449]
[1773293876687,7.66928107,2023.9,2023.5,0.90292449]
[1773293877080,0.94310395,2023.8,2023.5,0.90292449]
[1773293878086,7.66928107,2023.9,2023.5,0.90292449]
[1773293879780,0.00413712,2023.9,2023.5,0.90292449]
[1773293879986,7.42224107,2023.9,2023.5,0.90292449]
[1773293881493,0.94310395,2023.8,2023.5,0.90292449]
[1773293881690,0.94310395,2023.8,2023.4,0.90292449]
[1773293881890,0.94310395,2023.8,2023.1,8.62189648]
[1773293882190,0.94310395,2023.8,2023.2,0.90292449]
[1773293885793,7.83588788,2023.9,2023.5,0.90292449]
[1773293885794,0.94724107,2023.9,2023.5,0.90292449]
[1773293885992,7.41710395,2023.8,2023.5,0.90292449]
[1773293886595,0.94310395,2023.7,2023.3,0.90292449]
[1773293888194,0.94310395,2023.7,2023.2,0.90292449]
[1773293891594,7.83075076,2023.8,2023.2,0.90292449]
[1773293891799,6.07112989,2023.7,2023.5,0.90292449]
[1773293894898,0.00413712,2023.9,2023.5,0.90292449]
[1773293895095,0.24702,2024.0,2023.6,1.35675076]
[1773293895301,6.03189154,2024.0,2023.7,0.90292449]
[1773293896002,0.94310395,2023.9,2023.5,0.90292449]
[1773293896202,0.94669213,2023.9,2023.5,0.90659158]
[1773293897906,0.00358818,2023.9,2023.5,0.90659158]
[1773293902006,6.03189154,2024.0,2023.5,0.90659158]
[1773293902201,6.474,2024.0,2023.7,0.92103579]
[1773293902909,6.47914712,2024.0,2023.7,0.92103579]
[1773293904911,2.30213333,2024.3,2023.7,0.92103579]
[1773293905210,6.474,2024.2,2023.7,0.92103579]
[1773293905411,7.41938257,2024.2,2023.7,0.92103579]
[1773293906012,0.94538257,2024.1,2023.7,0.92103579]
[1773293906210,7.42570258,2024.2,2023.7,0.92103579]
[1773293906410,0.95170258,2024.2,2023.9,0.92103579]
[1773293906611,0.24697,2024.5,2024.1,0.92103579]
[1773293906809,7.66635257,2024.5,2024.1,0.92103579]
[1773293907316,6.72097,2024.5,2024.1,0.92103579]
[1773293907511,6.72615361,2024.5,2024.1,0.92103579]
[1773293907710,7.67153618,2024.5,2024.1,0.92103579]
[1773293907913,0.94538257,2024.7,2024.3,0.92103579]
[1773293909021,0.95160089,2024.7,2024.3,0.92103579]
[1773293910016,0.00621832,2024.7,2024.5,0.92103579]
[1773293910315,6.474,2024.8,2024.5,0.92103579]
[1773293910709,6.474,2024.8,2024.1,0.24126858]
[1773293910710,0.94538257,2024.7,2024.3,0.92103579]
[1773293911309,0.95007716,2024.7,2024.3,0.92103579]
[1773293912315,0.00469459,2024.7,2024.3,0.92103579]
[1773293912515,0.94538257,2024.9,2024.3,0.92103579]
[1773293912817,7.41838257,2024.9,2024.3,0.92103579]
[1773293913610,7.42353994,2024.9,2024.3,0.92103579]
[1773293914317,0.94538257,2025.1,2024.4,0.92103579]
[1773293914517,7.41738257,2025.1,2024.4,0.92103579]
[1773293915218,0.94538257,2025.0,2024.4,0.92103579]
[1773293915421,0.94953108,2025.0,2024.4,0.92103579]
[1773293917822,0.00414851,2025.0,2024.4,0.92103579]
[1773293918727,0.24688,2025.2,2024.6,0.92103579]
[1773293919025,7.41738257,2025.3,2024.6,0.92103579]
[1773293919426,0.94538257,2025.2,2024.6,0.92103579]
[1773293919830,0.95020431,2025.2,2024.6,0.92103579]
[1773293926744,0.89269726,2025.0,2024.4,1.15612734]
[1773293927432,0.89269726,2025.0,2024.5,0.90654718]
[1773293931741,0.89269726,2025.0,2024.4,0.89273076]
[1773293932041,0.87503494,2024.8,2024.2,0.89273076]
[1773293932433,0.87503494,2024.7,2024.2,0.89273076]
[1773293932635,0.87503494,2024.7,2024.1,0.89273076]
[1773293933542,0.87503494,2024.5,2024.0,0.89273076]
[1773293933934,0.87503494,2024.5,2023.7,0.89273076]
[1773293934137,0.24694,2024.6,2023.9,0.89273076]
[1773293934138,6.47,2024.6,2023.9,0.89273076]
[1773293934334,7.34503494,2024.6,2023.9,0.89273076]
[1773293934537,0.87503494,2024.6,2023.9,0.89273076]
[1773293934739,7.34503494,2025.0,2024.1,0.89273076]
[1773293934941,0.87503494,2024.9,2024.1,0.89273076]
[1773293939043,0.87503494,2024.7,2024.1,0.89273076]
[1773293944145,0.87503494,2024.7,2024.2,0.89273076]
[1773293950950,0.24692,2024.8,2024.2,0.89273076]
[1773293951155,1.12195494,2024.8,2024.2,0.89273076]
[1773293951955,0.87503494,2024.7,2024.2,0.89273076]
[1773293952258,0.87503494,2025.1,2024.3,0.89273076]
[1773293952457,0.87503494,2025.0,2024.3,0.89273076]
[1773293952651,0.87985668,2025.2,2024.5,0.89273076]
[1773293957963,0.87503494,2025.0,2024.3,8.61170275]
[1773293958159,0.87503494,2024.8,2024.3,0.89273076]
[1773293967365,0.87503494,2024.8,2024.1,8.66262625]
[1773293967569,0.93455281,2024.6,2024.0,7.71897199]
[1773293968265,0.93455281,2024.6,2024.0,8.66262625]
[1773293971865,0.93455281,2024.6,2024.1,0.94365426]
[1773293973371,7.40555281,2024.5,2024.1,0.94365426]
[1773293980482,6.471,2024.5,2024.1,0.94365426]
[1773293981281,7.40555281,2024.5,2024.1,0.94365426]
[1773293984078,0.93290816,2024.4,2024.1,0.94365426]
[1773293984378,0.93290816,2024.4,2024.0,8.63295627]
[1773293984584,0.93290816,2024.4,2024.1,0.91398428]
[1773293984980,7.65086816,2024.5,2024.1,0.91398428]
[1773293986284,0.93290816,2024.4,2024.1,0.91398428]
[1773293986485,7.40490816,2024.4,2024.1,0.91398428]
[1773293986681,0.93290816,2024.4,2024.1,0.91398428]
[1773293986886,7.40490816,2024.4,2024.1,0.91398428]
[1773293990785,0.88484627,2024.5,2024.1,0.91398428]
[1773293990996,6.472,2024.6,2024.4,1.3553966]
[1773293991190,0.88484627,2024.8,2024.5,0.93698507]
[1773293991394,7.35684627,2024.8,2024.5,0.93698507]
[1773293994196,6.472,2024.8,2024.5,0.93698507]
[1773293994397,7.35684627,2024.8,2024.5,0.93698507]
[1773293996898,6.472,2024.8,2024.5,0.93698507]
[1773293997099,7.35584627,2025.1,2024.7,0.93698507]
[1773293998199,0.88484627,2025.0,2024.7,2.29238167]
[1773293998898,7.35584627,2025.0,2024.7,2.29238167]
[1773293999490,6.471,2025.0,2024.8,0.93698507]
[1773293999896,6.471,2025.0,2024.7,2.29238167]
[1773293999897,7.35584627,2025.0,2024.7,2.29238167]
[1773294000801,0.88484627,2024.9,2024.4,8.65595706]
[1773294000996,0.88484627,2024.9,2024.5,0.93698507]
[1773294001397,0.88484627,2024.9,2024.6,0.93698507]
[1773294001801,0.88484627,2024.9,2024.5,2.29238167]
[1773294002402,0.88484627,2024.7,2024.2,8.90838945]
[1773294002597,0.24692,2024.8,2024.2,8.90838945]
[1773294002598,0.88484627,2024.6,2024.2,0.25243239]
[1773294002794,0.88484627,2024.5,2024.2,0.93698507]
[1773294002996,7.35584627,2024.6,2024.2,0.93698507]
[1773294003306,6.471,2024.7,2024.4,0.93698507]
[1773294004305,7.35584627,2024.7,2024.4,0.93698507]
[1773294005504,0.88484627,2024.6,2024.3,2.29238167]
[1773294005705,0.88484627,2024.6,2024.3,0.93698507]
[1773294007201,1.3553966,2025.1,2024.3,0.93698507]
[1773294007202,6.471,2024.8,2024.3,0.93698507]
[1773294007408,0.88484627,2024.7,2024.3,0.93698507]
[1773294009708,0.88484627,2024.7,2024.2,0.93698507]
[1773294010710,0.88484627,2024.6,2024.0,8.65595706]
[1773294011211,1.3553966,2024.5,2024.0,8.65595706]
[1773294011412,0.88484627,2024.4,2024.0,0.93698507]
[1773294011610,0.88484627,2024.6,2024.2,0.93698507]
[1773294011805,0.88484627,2024.8,2024.2,0.93698507]
[1773294017217,0.88484627,2024.8,2024.1,2.29238167]
[1773294017218,0.88484627,2024.7,2024.1,2.29238167]
[1773294017813,0.88484627,2024.7,2024.1,0.93698507]
[1773294018012,0.88484627,2024.7,2024.0,8.90825448]
[1773294018215,0.88484627,2024.7,2024.0,1.18928249]
[1773294018614,0.88484627,2024.7,2024.1,0.93698507]
[1773294019514,0.88484627,2024.7,2024.2,0.93698507]
[1773294022418,6.71791,2024.9,2024.2,0.93698507]
[1773294022419,0.88843441,2024.8,2024.2,0.93698507]
[1773294022619,7.35943441,2024.8,2024.2,0.93698507]
[1773294023320,0.88843441,2024.7,2024.2,0.93698507]
[1773294023716,0.88843441,2024.8,2024.4,0.87079532]
[1773294024122,7.35943441,2024.9,2024.6,0.87079532]
[1773294024323,6.471,2024.9,2024.6,0.87079532]
[1773294024718,7.35943441,2024.9,2024.6,0.87079532]
[1773294025418,2.24865275,2025.2,2024.5,0.87079532]
[1773294025625,0.89325615,2025.2,2024.8,2.22619192]
[1773294026121,0.89325615,2025.2,2024.8,0.87079532]
[1773294027324,0.89325615,2025.2,2024.7,0.87079532]
[1773294028423,7.36425615,2025.2,2024.7,0.87079532]
[1773294030327,0.00482174,2025.2,2024.9,0.87079532]
[1773294031026,0.00482174,2025.2,2024.5,9.07436859]
[1773294031027,0.89325615,2025.2,2024.7,0.87079532]
[1773294031222,0.89325615,2025.2,2024.8,0.87079532]
[1773294032124,0.88843441,2025.1,2024.6,0.87079532]
[1773294035324,0.88843441,2025.1,2024.4,8.84264396]
[1773294035524,0.88843441,2025.4,2025.0,0.87079532]
[1773294035829,0.88843441,2025.6,2025.1,0.87079532]
[1773294036828,0.89468225,2025.6,2025.1,0.87459648]
[1773294037528,7.36468225,2025.6,2025.1,0.87459648]
[1773294038526,0.89468225,2025.6,2025.1,0.87459648]
[1773294039034,0.00624784,2025.6,2025.1,0.87459648]
[1773294041142,0.89468225,2025.6,2025.1,0.87459648]
[1773294041640,0.00624784,2025.6,2025.1,0.87459648]
[1773294049545,1.14144249,2026.1,2025.3,0.93848319]
[1773294049844,0.89467249,2026.0,2025.3,0.93848319]
[1773294050645,0.90022626,2026.0,2025.3,0.93848319]
[1773294056648,0.90022626,2026.0,2025.4,0.88960204]
[1773294058353,0.95172829,2026.5,2026.0,0.88960204]
[1773294058649,0.95172829,2026.5,2025.6,0.88960204]
[1773294059343,0.00570346,2026.5,2025.6,0.88960204]
[1773294059942,0.00570346,2026.5,2026.0,0.88960204]
[1773294061347,0.95743175,2026.5,2026.0,0.88960204]
[1773294061546,0.95743175,2026.5,2025.9,0.88960204]
[1773294061946,0.95172829,2026.4,2025.8,0.88960204]
[1773294062847,0.95172829,2026.4,2025.8,1.13153163]
[1773294063048,0.95172829,2026.4,2025.9,0.88960204]
[1773294063750,0.95172829,2026.4,2025.8,1.13153163]
[1773294063949,0.95172829,2026.4,2025.8,0.88960204]
[1773294065054,0.95172829,2026.4,2025.4,0.88960204]
[1773294065354,0.95172829,2026.4,2025.5,0.88960204]
[1773294067555,0.95172829,2026.2,2025.5,0.88960204]
[1773294073062,0.95172829,2026.2,2025.6,0.88960204]
[1773294075058,0.95172829,2026.4,2025.6,0.88960204]
[1773294075259,0.95172829,2026.4,2025.7,0.88960204]
[1773294076153,0.95172829,2026.4,2025.8,0.88960204]
[1773294077362,0.95172829,2026.8,2025.9,8.60857403]
[1773294077563,0.95172829,2026.8,2026.0,0.88960204]
[1773294077961,0.95172829,2026.8,2026.1,0.88960204]
[1773294078363,0.0054297,2026.8,2026.1,0.88960204]
[1773294078961,0.95715799,2026.8,2026.1,0.88960204]
[1773294083061,0.85869334,2026.6,2026.0,8.56028824]
[1773294083261,0.85869334,2026.6,2026.0,0.84131625]
[1773294083463,0.86412304,2026.8,2026.0,0.84131625]
[1773294087667,0.86412304,2026.8,2026.1,0.84131625]
[1773294088969,0.0054297,2026.8,2026.1,0.84131625]
[1773294089167,0.86412304,2026.8,2026.1,0.84131625]
[1773294090961,0.86412304,2026.8,2026.1,8.56028824]
[1773294090962,0.0054297,2026.8,2026.1,8.56028824]
[1773294091165,0.85869334,2027.6,2026.8,0.84131625]
[1773294091365,0.85869334,2027.5,2026.8,0.84131625]
[1773294091768,0.85869334,2027.3,2026.5,8.56028824]
[1773294091969,1.6005736,2027.4,2026.5,0.84131625]
[1773294091970,0.85869334,2027.1,2026.5,0.84131625]
[1773294092271,0.86356669,2027.1,2026.5,0.84666339]
[1773294095068,0.85869334,2027.3,2026.7,0.84131625]
[1773294095765,0.85869334,2027.3,2026.8,0.84131625]
[1773294096166,0.86495494,2027.3,2026.8,0.84131625]
[1773294096969,0.85869334,2028.3,2027.3,0.84131625]
[1773294097169,0.85869334,2027.9,2027.3,0.84131625]
[1773294097365,0.85869334,2027.7,2027.3,0.84131625]
[1773294098072,2.78841948,2027.6,2027.4,0.84131625]
[1773294098275,0.00549614,2027.7,2027.4,0.84131625]
[1773294098477,0.86418948,2027.7,2027.4,0.84131625]
[1773294098667,0.00549614,2027.7,2027.4,0.84131625]
[1773294098869,0.85869334,2027.6,2027.2,0.84131625]
[1773294099676,0.85869334,2027.5,2027.0,0.84131625]
[1773294100277,0.85869334,2027.6,2027.0,0.84131625]
[1773294100776,0.85869334,2027.5,2027.0,0.84131625]
[1773294100977,0.85869334,2027.4,2027.0,0.84131625]
[1773294101278,0.85869334,2027.4,2026.9,0.24628746]
[1773294101470,0.85869334,2027.4,2026.9,0.84131625]
[1773294101676,7.36292541,2027.6,2027.0,0.94999279]
[1773294101873,3.36632541,2027.5,2027.0,0.94999279]
[1773294102274,3.36632541,2027.4,2027.0,0.94999279]
[1773294102473,0.89992541,2027.4,2027.0,0.94999279]
[1773294102679,0.89992541,2027.4,2026.6,0.94999279]
[1773294102875,0.89992541,2027.3,2026.8,0.94999279]
[1773294103979,7.8149337,2027.4,2026.8,0.94999279]
[1773294103980,3.36632541,2027.2,2026.8,0.94999279]
[1773294104174,0.89992541,2027.2,2026.8,0.94999279]
[1773294104376,3.36632541,2027.2,2026.8,0.94999279]
[1773294105381,7.36292541,2027.3,2026.8,0.94999279]
[1773294105580,9.82932541,2027.3,2026.8,0.94999279]
[1773294106079,0.89992541,2027.2,2026.8,0.94999279]
[1773294108283,3.36632541,2027.2,2026.8,0.94999279]
[1773294108479,0.89992541,2027.2,2026.8,0.94999279]
[1773294108982,3.36632541,2027.2,2026.8,0.94999279]
[1773294109182,2.4664,2027.2,2026.8,0.94999279]
[1773294109385,3.36632541,2027.2,2026.8,0.94999279]
[1773294109586,0.89992541,2027.6,2027.0,0.94999279]
[1773294109785,0.89992541,2027.3,2026.8,0.94999279]
[1773294113589,0.90811279,2027.2,2026.8,0.94999279]
[1773294113790,7.37111279,2027.3,2026.8,0.94999279]
[1773294114084,0.90811279,2027.2,2026.8,0.94999279]
[1773294117289,7.37111279,2027.3,2026.8,0.94999279]
[1773294117587,0.90811279,2027.3,2026.8,0.94999279]
[1773294117796,7.37011279,2027.3,2026.8,0.94999279]
[1773294117997,0.90811279,2027.2,2026.8,0.94999279]
[1773294118698,6.462,2027.3,2026.8,0.94999279]
[1773294118897,7.37011279,2027.3,2026.8,0.94999279]
[1773294119097,0.90811279,2027.2,2026.8,0.94999279]
[1773294122102,0.90811279,2027.2,2026.7,7.71897199]
[1773294122296,0.90811279,2027.2,2026.8,0.91726577]
[1773294122493,6.462,2027.1,2026.8,0.91726577]
[1773294122696,1.3519337,2027.4,2026.8,0.91726577]
[1773294123001,0.90811279,2027.3,2026.8,0.91726577]
[1773294123196,6.462,2027.2,2026.8,0.91726577]
[1773294123602,7.37011279,2027.2,2026.8,0.91726577]
[1773294124098,7.37011279,2027.2,2026.8,8.63623776]
[1773294124300,7.37011279,2027.2,2026.8,0.91726577]
[1773294124603,0.90811279,2027.1,2026.8,0.91726577]
[1773294124803,0.90811279,2027.1,2026.7,8.63623776]
[1773294125000,0.90811279,2027.1,2026.6,7.96820697]
[1773294125297,0.90811279,2027.1,2026.6,8.88547274]
[1773294125498,0.90811279,2027.1,2026.7,0.91726577]
[1773294127103,6.462,2027.0,2026.6,8.88547274]
[1773294127401,7.37011279,2027.0,2026.6,8.88547274]
[1773294127604,7.37011279,2027.0,2026.7,0.91726577]
[1773294128400,0.90811279,2026.9,2026.6,7.96820697]
[1773294128601,0.90811279,2026.9,2026.6,8.88547274]
[1773294129406,7.37011279,2027.0,2026.7,0.91726577]
[1773294129602,0.90811279,2027.4,2026.9,0.91726577]
[1773294129807,6.463,2027.3,2026.9,0.91726577]
[1773294130006,7.37111279,2027.3,2026.9,0.91726577]
[1773294130202,6.463,2027.3,2026.9,0.91726577]
[1773294130406,0.90811279,2027.2,2026.9,0.91726577]
[1773294131904,1.3519337,2027.6,2026.9,0.91726577]
[1773294132211,0.91360893,2027.7,2027.3,0.91726577]
[1773294132406,0.90811279,2027.5,2027.1,8.63623776]
[1773294132701,0.90811279,2027.5,2027.1,0.91726577]
[1773294132906,0.90811279,2027.4,2027.1,0.91726577]
[1773294134809,7.37011279,2027.4,2027.1,0.91726577]
[1773294135505,7.37011279,2027.4,2027.0,7.71897199]
[1773294135709,0.90811279,2027.3,2027.0,8.63623776]
[1773294135903,0.90811279,2027.4,2027.1,0.91726577]
[1773294136107,7.37011279,2027.4,2027.1,0.91726577]